[Event "Titled Tuesday Blitz July 11 Early 2023"]
[White "UgarteCesar"]
[Black "Vila Dupla, Aurelio"]
[BlackFideId "2203383"]
[WhiteElo "2249"]
[BlackElo "2125"]
[Result "0-1"]
[Round "5"]
[TimeControl "180+2"]
[Date "2023.07.11"]
[WhiteClock "0:00:36"]
[BlackClock "0:00:02"]
[Board "197"]

1. d4 {[%clk 0:03:00]}  Nf6 {[%clk 0:02:59]} 2. Bf4 {[%clk 0:03:00]}  g6 {[%clk 0:02:59]} 3. e3 {[%clk 0:02:59]}  Bg7 {[%clk 0:02:58]} 4. h3 {[%clk 0:02:59]}  O-O {[%clk 0:02:58]} 5. Nf3 {[%clk 0:03:00]}  d5 {[%clk 0:02:58]} 6. Be2 {[%clk 0:03:00]}  c5 {[%clk 0:02:58]} 7. c3 {[%clk 0:03:00]}  b6 {[%clk 0:02:58]} 8. O-O {[%clk 0:02:58]}  Bb7 {[%clk 0:02:59]} 9. Nbd2 {[%clk 0:02:57]}  Nc6 {[%clk 0:02:59]} 10. a4 {[%clk 0:02:57]}  a6 {[%clk 0:02:58]} 11. Qb3 {[%clk 0:02:56]}  Ra7 {[%clk 0:02:27]} 12. dxc5 {[%clk 0:02:43]}  bxc5 {[%clk 0:02:26]} 13. Qa3 {[%clk 0:02:38]}  c4 {[%clk 0:02:18]} 14. Rfd1 {[%clk 0:02:37]}  Nd7 {[%clk 0:02:15]} 15. Bg3 {[%clk 0:02:24]}  Re8 {[%clk 0:01:56]} 16. e4 {[%clk 0:02:18]}  e6 {[%clk 0:01:54]} 17. Bf1 {[%clk 0:02:08]}  Bf8 {[%clk 0:01:38]} 18. Qa2 {[%clk 0:02:08]}  Qc8 {[%clk 0:01:33]} 19. exd5 {[%clk 0:02:06]}  exd5 {[%clk 0:01:32]} 20. b3 {[%clk 0:01:59]}  cxb3 {[%clk 0:01:24]} 21. Nxb3 {[%clk 0:01:59]}  Bg7 {[%clk 0:01:21]} 22. Nbd4 {[%clk 0:01:58]}  Nde5 {[%clk 0:01:15]} 23. Rac1 {[%clk 0:01:52]}  Nxf3+ {[%clk 0:01:11]} 24. Nxf3 {[%clk 0:01:52]}  Ne5 {[%clk 0:01:11]} 25. Nxe5 {[%clk 0:01:46]}  Bxe5 {[%clk 0:01:10]} 26. Bxe5 {[%clk 0:01:47]}  Rxe5 {[%clk 0:01:10]} 27. c4 {[%clk 0:01:47]}  Qd7 {[%clk 0:00:58]} 28. Qb2 {[%clk 0:01:40]}  Re8 {[%clk 0:00:51]} 29. cxd5 {[%clk 0:01:28]}  Qd6 {[%clk 0:00:33]} 30. Qd4 {[%clk 0:01:23]}  Raa8 {[%clk 0:00:33]} 31. Qc5 {[%clk 0:01:15]}  Rad8 {[%clk 0:00:31]} 32. Qxd6 {[%clk 0:01:13]}  Rxd6 {[%clk 0:00:32]} 33. Bc4 {[%clk 0:01:12]}  Red8 {[%clk 0:00:31]} 34. Rc2 {[%clk 0:00:56]}  Rc8 {[%clk 0:00:31]} 35. Rb2 {[%clk 0:00:48]}  Rxc4 {[%clk 0:00:23]} 36. Rxb7 {[%clk 0:00:48]}  Rxa4 {[%clk 0:00:23]} 37. Rc7 {[%clk 0:00:45]}  Ra5 {[%clk 0:00:23]} 38. Rc6 {[%clk 0:00:42]}  Raxd5 {[%clk 0:00:21]} 39. Rxd5 {[%clk 0:00:42]}  Rxc6 {[%clk 0:00:21]} 40. Rd8+ {[%clk 0:00:42]}  Kg7 {[%clk 0:00:21]} 41. Ra8 {[%clk 0:00:43]}  Kf6 {[%clk 0:00:21]} 42. f4 {[%clk 0:00:43]}  Kf5 {[%clk 0:00:19]} 43. g3 {[%clk 0:00:43]}  h5 {[%clk 0:00:17]} 44. Kg2 {[%clk 0:00:43]}  f6 {[%clk 0:00:16]} 45. Kf3 {[%clk 0:00:43]}  Rb6 {[%clk 0:00:16]} 46. Ra7 {[%clk 0:00:42]}  Rb3+ {[%clk 0:00:16]} 47. Kf2 {[%clk 0:00:42]}  Ra3 {[%clk 0:00:16]} 48. Ra8 {[%clk 0:00:40]}  a5 {[%clk 0:00:15]} 49. Ra6 {[%clk 0:00:39]}  Ra2+ {[%clk 0:00:16]} 50. Kf3 {[%clk 0:00:39]}  Ra3+ {[%clk 0:00:13]} 51. Kf2 {[%clk 0:00:39]}  g5 {[%clk 0:00:11]} 52. fxg5 {[%clk 0:00:39]}  fxg5 {[%clk 0:00:11]} 53. Kg2 {[%clk 0:00:38]}  h4 {[%clk 0:00:11]} 54. g4+ {[%clk 0:00:37]}  Ke5 {[%clk 0:00:09]} 55. Ra8 {[%clk 0:00:36]}  Ra2+ {[%clk 0:00:08]} 56. Kf3 {[%clk 0:00:36]}  Ra3+ {[%clk 0:00:08]} 57. Kg2 {[%clk 0:00:36]}  Rg3+ {[%clk 0:00:09]} 58. Kh2 {[%clk 0:00:37]}  Ra3 {[%clk 0:00:08]} 59. Rf8 {[%clk 0:00:37]}  Ra2+ {[%clk 0:00:07]} 60. Kg1 {[%clk 0:00:36]}  Ke4 {[%clk 0:00:05]} 61. Rf5 {[%clk 0:00:36]}  a4 {[%clk 0:00:04]} 62. Rxg5 {[%clk 0:00:36]}  Kf3 {[%clk 0:00:05]} 63. Rf5+ {[%clk 0:00:36]}  Kg3 {[%clk 0:00:05]} 64. Kf1 {[%clk 0:00:36]}  Kxh3 {[%clk 0:00:05]} 65. g5 {[%clk 0:00:37]}  Kg4 {[%clk 0:00:05]} 66. Ra5 {[%clk 0:00:37]}  Ra1+ {[%clk 0:00:01]} 67. Kf2 {[%clk 0:00:37]}  Ra2+ {[%clk 0:00:01]} 68. Ke3 {[%clk 0:00:37]}  Kh5 {[%clk 0:00:02]} 69. g6+ {[%clk 0:00:37]}  Kxg6 {[%clk 0:00:01]} 70. Ra6+ {[%clk 0:00:37]}  Kh5 {[%clk 0:00:01]} 71. Ra5+ {[%clk 0:00:38]}  Kg6 {[%clk 0:00:02]} 72. Kf4 {[%clk 0:00:39]}  Kf6 {[%clk 0:00:02]} 73. Ra6+ {[%clk 0:00:39]}  Ke7 {[%clk 0:00:02]} 74. Ra7+ {[%clk 0:00:40]}  Kd8 {[%clk 0:00:03]} 75. Ra8+ {[%clk 0:00:40]}  Kc7 {[%clk 0:00:03]} 76. Kg4 {[%clk 0:00:40]}  Kb6 {[%clk 0:00:04]} 77. Kxh4 {[%clk 0:00:40]}  Kb5 {[%clk 0:00:04]} 78. Rb8+ {[%clk 0:00:41]}  Kc4 {[%clk 0:00:04]} 79. Rc8+ {[%clk 0:00:42]}  Kb3 {[%clk 0:00:05]} 80. Rb8+ {[%clk 0:00:42]}  Ka3 {[%clk 0:00:05]} 81. Kg4 {[%clk 0:00:43]}  Re2 {[%clk 0:00:05]} 82. Kf4 {[%clk 0:00:44]}  Ka2 {[%clk 0:00:05]} 83. Kf3 {[%clk 0:00:45]}  Re6 {[%clk 0:00:04]} 84. Ra8 {[%clk 0:00:46]}  a3 {[%clk 0:00:04]} 85. Kf4 {[%clk 0:00:46]}  Kb2 {[%clk 0:00:04]} 86. Kf5 {[%clk 0:00:47]}  Re2 {[%clk 0:00:04]} 87. Kf4 {[%clk 0:00:47]}  Ka2 {[%clk 0:00:04]} 88. Kf3 {[%clk 0:00:48]}  Re6 {[%clk 0:00:04]} 89. Kf2 {[%clk 0:00:49]}  Kb2 {[%clk 0:00:04]} 90. Rb8+ {[%clk 0:00:48]}  Ka1 {[%clk 0:00:04]} 91. Kf3 {[%clk 0:00:47]}  a2 {[%clk 0:00:04]} 92. Kf2 {[%clk 0:00:47]}  Re7 {[%clk 0:00:03]} 93. Rb3 {[%clk 0:00:46]}  Rc7 {[%clk 0:00:03]} 94. Rb4 {[%clk 0:00:46]}  Rc1 {[%clk 0:00:03]} 95. Ke2 {[%clk 0:00:46]}  Rb1 {[%clk 0:00:03]} 96. Ra4 {[%clk 0:00:46]}  Kb2 {[%clk 0:00:03]} 97. Kd2 {[%clk 0:00:43]}  a1=Q {[%clk 0:00:02]} 98. Rb4+ {[%clk 0:00:36]}  Ka3 {[%clk 0:00:02]} 0-1


[Site "https://www.chess.com"]

[Event "Titled Tuesday Blitz July 11 Early 2023"]
[White "Roque Sola, Jose Luis"]
[Black "Sala, Giulia"]
[WhiteFideId "5120390"]
[BlackFideId "2840451"]
[WhiteElo "2117"]
[BlackElo "2244"]
[Result "1-0"]
[Round "5"]
[TimeControl "180+2"]
[Date "2023.07.11"]
[WhiteClock "0:00:16"]
[BlackClock "0:00:55"]
[Board "198"]

1. c4 {[%clk 0:03:00]}  c5 {[%clk 0:02:54]} 2. Nc3 {[%clk 0:02:57]}  b6 {[%clk 0:02:53]} 3. Nf3 {[%clk 0:02:52]}  Bb7 {[%clk 0:02:53]} 4. e4 {[%clk 0:02:52]}  Nc6 {[%clk 0:02:52]} 5. d4 {[%clk 0:02:51]}  cxd4 {[%clk 0:02:51]} 6. Nxd4 {[%clk 0:02:52]}  Nxd4 {[%clk 0:02:51]} 7. Qxd4 {[%clk 0:02:51]}  Qc7 {[%clk 0:02:52]} 8. Bd3 {[%clk 0:02:43]}  d6 {[%clk 0:02:53]} 9. O-O {[%clk 0:02:41]}  Nf6 {[%clk 0:02:52]} 10. Nd5 {[%clk 0:02:28]}  Bxd5 {[%clk 0:02:44]} 11. cxd5 {[%clk 0:02:29]}  g6 {[%clk 0:02:30]} 12. Be3 {[%clk 0:02:23]}  Bg7 {[%clk 0:02:11]} 13. Qa4+ {[%clk 0:02:23]}  Nd7 {[%clk 0:02:02]} 14. Rac1 {[%clk 0:02:21]}  Qd8 {[%clk 0:01:55]} 15. Bb5 {[%clk 0:01:57]}  e6 {[%clk 0:01:38]} 16. dxe6 {[%clk 0:01:45]}  fxe6 {[%clk 0:01:39]} 17. Rc2 {[%clk 0:01:44]}  Ke7 {[%clk 0:01:37]} 18. Rfc1 {[%clk 0:00:41]}  Nc5 {[%clk 0:01:33]} 19. Qa3 {[%clk 0:00:39]}  Rf8 {[%clk 0:01:25]} 20. b4 {[%clk 0:00:38]}  Nxe4 {[%clk 0:01:22]} 21. Rc7+ {[%clk 0:00:36]}  Kf6 {[%clk 0:01:20]} 22. Bd4+ {[%clk 0:00:20]}  e5 {[%clk 0:01:19]} 23. Qf3+ {[%clk 0:00:19]}  Kg5 {[%clk 0:01:14]} 24. Be3+ {[%clk 0:00:18]}  Kh4 {[%clk 0:00:59]} 25. Qxe4+ {[%clk 0:00:16]}  Kh5 {[%clk 0:00:59]} 26. Rxg7 {[%clk 0:00:16]}  Qf6 {[%clk 0:00:55]} 27. Rxh7# {[%clk 0:00:16]} 1-0


[Site "https://www.chess.com"]

[Event "Titled Tuesday Blitz July 11 Early 2023"]
[White "Kopacz, Grzegorz"]
[Black "Floresvillar Gonzalez, Luis Migu"]
[WhiteFideId "1109880"]
[BlackFideId "5100542"]
[WhiteElo "2224"]
[BlackElo "2090"]
[Result "0-1"]
[Round "5"]
[TimeControl "180+2"]
[Date "2023.07.11"]
[WhiteClock "0:00:06"]
[BlackClock "0:00:05"]
[Board "200"]

1. d4 {[%clk 0:03:00]}  d5 {[%clk 0:02:57]} 2. c4 {[%clk 0:02:58]}  c6 {[%clk 0:02:56]} 3. cxd5 {[%clk 0:02:52]}  cxd5 {[%clk 0:02:56]} 4. Bg5 {[%clk 0:02:51]}  Qb6 {[%clk 0:02:53]} 5. Nc3 {[%clk 0:02:50]}  h6 {[%clk 0:02:31]} 6. Bh4 {[%clk 0:02:34]}  g5 {[%clk 0:02:28]} 7. Bg3 {[%clk 0:02:25]}  Nf6 {[%clk 0:02:26]} 8. e3 {[%clk 0:02:15]}  a6 {[%clk 0:02:16]} 9. Qc2 {[%clk 0:02:05]}  Bg4 {[%clk 0:02:13]} 10. h3 {[%clk 0:02:02]}  Bh5 {[%clk 0:02:12]} 11. Bd3 {[%clk 0:02:02]}  Nc6 {[%clk 0:02:09]} 12. a3 {[%clk 0:02:00]}  Bg7 {[%clk 0:02:07]} 13. Na4 {[%clk 0:01:49]}  Qd8 {[%clk 0:01:46]} 14. Nc5 {[%clk 0:01:42]}  Qc8 {[%clk 0:01:46]} 15. Ne2 {[%clk 0:01:37]}  O-O {[%clk 0:01:45]} 16. O-O {[%clk 0:01:35]}  Nd7 {[%clk 0:01:41]} 17. Rfc1 {[%clk 0:01:33]}  Nxc5 {[%clk 0:01:40]} 18. Qxc5 {[%clk 0:01:31]}  Qd7 {[%clk 0:01:30]} 19. h4 {[%clk 0:01:20]}  Rac8 {[%clk 0:01:02]} 20. Qb6 {[%clk 0:01:07]}  Bf6 {[%clk 0:00:42]} 21. hxg5 {[%clk 0:01:05]}  hxg5 {[%clk 0:00:41]} 22. Nc3 {[%clk 0:00:56]}  Kg7 {[%clk 0:00:39]} 23. Qb3 {[%clk 0:00:49]}  e6 {[%clk 0:00:37]} 24. Be2 {[%clk 0:00:37]}  Rh8 {[%clk 0:00:35]} 25. f3 {[%clk 0:00:29]}  Bg6 {[%clk 0:00:29]} 26. Kf2 {[%clk 0:00:26]}  b5 {[%clk 0:00:18]} 27. a4 {[%clk 0:00:20]}  b4 {[%clk 0:00:17]} 28. Na2 {[%clk 0:00:20]}  a5 {[%clk 0:00:17]} 29. Rc5 {[%clk 0:00:21]}  Ra8 {[%clk 0:00:16]} 30. Rac1 {[%clk 0:00:20]}  Nxd4 {[%clk 0:00:16]} 31. exd4 {[%clk 0:00:19]}  Bxd4+ {[%clk 0:00:16]} 32. Ke1 {[%clk 0:00:18]}  Bxc5 {[%clk 0:00:14]} 33. Rxc5 {[%clk 0:00:19]}  Rh1+ {[%clk 0:00:13]} 34. Bf1 {[%clk 0:00:19]}  Rc8 {[%clk 0:00:12]} 35. Be5+ {[%clk 0:00:17]}  f6 {[%clk 0:00:11]} 36. Bd4 {[%clk 0:00:10]}  Rxc5 {[%clk 0:00:10]} 37. Bxc5 {[%clk 0:00:11]}  Qc6 {[%clk 0:00:08]} 38. Qc2 {[%clk 0:00:10]}  Bxc2 {[%clk 0:00:05]} 39. Bf2 {[%clk 0:00:06]}  b3 {[%clk 0:00:05]} 40. Nc3 {[%clk 0:00:05]}  Rxf1+ {[%clk 0:00:05]} 41. Kxf1 {[%clk 0:00:05]}  d4 {[%clk 0:00:05]} 42. Kg1 {[%clk 0:00:06]}  dxc3 {[%clk 0:00:04]} 43. bxc3 {[%clk 0:00:07]}  Qxc3 {[%clk 0:00:03]} 44. Kh2 {[%clk 0:00:06]}  b2 {[%clk 0:00:04]} 45. Bg3 {[%clk 0:00:06]}  b1=Q {[%clk 0:00:04]} 46. Be5 {[%clk 0:00:07]}  Qbe1 {[%clk 0:00:04]} 47. Bxc3 {[%clk 0:00:06]}  Qxc3 {[%clk 0:00:04]} 48. f4 {[%clk 0:00:07]}  Bxa4 {[%clk 0:00:04]} 49. fxg5 {[%clk 0:00:05]}  fxg5 {[%clk 0:00:04]} 50. g4 {[%clk 0:00:04]}  Qe5+ {[%clk 0:00:04]} 51. Kh3 {[%clk 0:00:05]}  Qf4 {[%clk 0:00:05]} 52. Kg2 {[%clk 0:00:04]}  Qxg4+ {[%clk 0:00:04]} 53. Kh2 {[%clk 0:00:05]}  Qf4+ {[%clk 0:00:05]} 54. Kh3 {[%clk 0:00:06]}  g4+ {[%clk 0:00:05]} 55. Kh4 {[%clk 0:00:06]}  g3+ {[%clk 0:00:05]} 56. Kh3 {[%clk 0:00:07]}  Qf3 {[%clk 0:00:05]} 57. Kh4 {[%clk 0:00:07]}  g2 {[%clk 0:00:05]} 58. Kg5 {[%clk 0:00:05]}  g1=Q+ {[%clk 0:00:05]} 59. Kh4 {[%clk 0:00:06]}  Qfh1# {[%clk 0:00:05]} 0-1


[Site "https://www.chess.com"]

[Event "Titled Tuesday Blitz July 11 Early 2023"]
[White "abelmat"]
[Black "Mishra, Manoj"]
[BlackFideId "5006007"]
[WhiteElo "1950"]
[BlackElo "2168"]
[Result "0-1"]
[Round "5"]
[TimeControl "180+2"]
[Date "2023.07.11"]
[WhiteClock "0:00:12"]
[BlackClock "0:00:11"]
[Board "202"]

1. d4 {[%clk 0:03:00]}  Nf6 {[%clk 0:02:39]} 2. c4 {[%clk 0:02:58]}  g6 {[%clk 0:02:37]} 3. Nc3 {[%clk 0:02:57]}  Bg7 {[%clk 0:02:38]} 4. e4 {[%clk 0:02:57]}  d6 {[%clk 0:02:37]} 5. f3 {[%clk 0:02:58]}  O-O {[%clk 0:02:36]} 6. Be3 {[%clk 0:02:58]}  e5 {[%clk 0:02:33]} 7. Nge2 {[%clk 0:02:58]}  Nc6 {[%clk 0:02:33]} 8. d5 {[%clk 0:02:56]}  Ne7 {[%clk 0:02:33]} 9. Qd2 {[%clk 0:02:57]}  Nd7 {[%clk 0:02:25]} 10. g4 {[%clk 0:02:56]}  f5 {[%clk 0:02:23]} 11. gxf5 {[%clk 0:02:55]}  gxf5 {[%clk 0:02:24]} 12. O-O-O {[%clk 0:02:46]}  f4 {[%clk 0:02:22]} 13. Bf2 {[%clk 0:02:46]}  Kh8 {[%clk 0:02:13]} 14. h4 {[%clk 0:02:46]}  h5 {[%clk 0:02:08]} 15. Bh3 {[%clk 0:02:25]}  a5 {[%clk 0:01:58]} 16. Rhg1 {[%clk 0:02:22]}  Nc5 {[%clk 0:01:56]} 17. Bxc8 {[%clk 0:02:04]}  Qxc8 {[%clk 0:01:48]} 18. Bxc5 {[%clk 0:02:01]}  dxc5 {[%clk 0:01:48]} 19. Nb5 {[%clk 0:01:46]}  c6 {[%clk 0:01:36]} 20. d6 {[%clk 0:01:31]}  Ng8 {[%clk 0:01:02]} 21. Nc7 {[%clk 0:01:04]}  Rb8 {[%clk 0:00:55]} 22. Rg5 {[%clk 0:00:56]}  Nf6 {[%clk 0:00:54]} 23. Rdg1 {[%clk 0:00:53]}  Rf7 {[%clk 0:00:52]} 24. Rxe5 {[%clk 0:00:42]}  b5 {[%clk 0:00:38]} 25. Qxf4 {[%clk 0:00:25]}  bxc4 {[%clk 0:00:35]} 26. Rxg7 {[%clk 0:00:16]}  Kxg7 {[%clk 0:00:34]} 27. Qg5+ {[%clk 0:00:14]}  Kf8 {[%clk 0:00:28]} 28. Ne6+ {[%clk 0:00:12]}  Ke8 {[%clk 0:00:25]} 29. Nxc5+ {[%clk 0:00:10]}  Kf8 {[%clk 0:00:23]} 30. Ne6+ {[%clk 0:00:10]}  Qxe6 {[%clk 0:00:22]} 31. Rxe6 {[%clk 0:00:10]}  Ng8 {[%clk 0:00:21]} 32. d7 {[%clk 0:00:08]}  Rxf3 {[%clk 0:00:19]} 33. Re8+ {[%clk 0:00:07]}  Rxe8 {[%clk 0:00:19]} 34. dxe8=Q+ {[%clk 0:00:04]}  Kxe8 {[%clk 0:00:20]} 35. Qxh5+ {[%clk 0:00:04]}  Ke7 {[%clk 0:00:19]} 36. Qxf3 {[%clk 0:00:05]}  Nf6 {[%clk 0:00:18]} 37. Nd4 {[%clk 0:00:06]}  Nd7 {[%clk 0:00:17]} 38. Qf5 {[%clk 0:00:06]}  Kd6 {[%clk 0:00:17]} 39. Qf6+ {[%clk 0:00:06]}  Nxf6 {[%clk 0:00:16]} 40. Nxc6 {[%clk 0:00:06]}  Kxc6 {[%clk 0:00:16]} 41. e5 {[%clk 0:00:06]}  Nh5 {[%clk 0:00:15]} 42. Kc2 {[%clk 0:00:06]}  Kd5 {[%clk 0:00:15]} 43. Kc3 {[%clk 0:00:07]}  Nf4 {[%clk 0:00:13]} 44. a3 {[%clk 0:00:08]}  a4 {[%clk 0:00:12]} 45. b3 {[%clk 0:00:09]}  axb3 {[%clk 0:00:12]} 46. a4 {[%clk 0:00:08]}  Kxe5 {[%clk 0:00:12]} 47. a5 {[%clk 0:00:08]}  Nd5+ {[%clk 0:00:13]} 48. Kb2 {[%clk 0:00:07]}  Kd6 {[%clk 0:00:11]} 49. h5 {[%clk 0:00:07]}  Kc5 {[%clk 0:00:11]} 50. h6 {[%clk 0:00:07]}  Nf6 {[%clk 0:00:10]} 51. Kc3 {[%clk 0:00:07]}  Kb5 {[%clk 0:00:10]} 52. a6 {[%clk 0:00:07]}  Kxa6 {[%clk 0:00:11]} 53. h7 {[%clk 0:00:06]}  Nxh7 {[%clk 0:00:11]} 54. Kb2 {[%clk 0:00:05]}  Kb5 {[%clk 0:00:11]} 55. Ka1 {[%clk 0:00:06]}  Nf6 {[%clk 0:00:11]} 56. Kb2 {[%clk 0:00:07]}  Nd7 {[%clk 0:00:12]} 57. Ka1 {[%clk 0:00:08]}  Kb4 {[%clk 0:00:12]} 58. Kb2 {[%clk 0:00:09]}  c3+ {[%clk 0:00:13]} 59. Ka1 {[%clk 0:00:09]}  Nc5 {[%clk 0:00:13]} 60. Kb1 {[%clk 0:00:10]}  Nd3 {[%clk 0:00:10]} 61. Ka1 {[%clk 0:00:11]}  Kc4 {[%clk 0:00:10]} 62. Kb1 {[%clk 0:00:11]}  c2+ {[%clk 0:00:11]} 63. Ka1 {[%clk 0:00:12]}  c1=Q# {[%clk 0:00:11]} 0-1


[Site "https://www.chess.com"]

[Event "Titled Tuesday Blitz July 11 Early 2023"]
[White "Nakamura, Hikaru"]
[Black "He, Anthony"]
[WhiteFideId "2016192"]
[BlackFideId "2088215"]
[WhiteElo "3230"]
[BlackElo "3002"]
[Result "1-0"]
[Round "6"]
[TimeControl "180+2"]
[Date "2023.07.11"]
[WhiteClock "0:00:19"]
[BlackClock "0:00:00"]
[Board "1"]

1. a3 {[%clk 0:03:00]}  e5 {[%clk 0:02:57]} 2. c4 {[%clk 0:02:59]}  Nf6 {[%clk 0:02:56]} 3. d3 {[%clk 0:03:00]}  c6 {[%clk 0:02:54]} 4. Nf3 {[%clk 0:02:58]}  d6 {[%clk 0:02:47]} 5. Nc3 {[%clk 0:02:47]}  Be7 {[%clk 0:02:15]} 6. g3 {[%clk 0:02:44]}  O-O {[%clk 0:02:15]} 7. Bg2 {[%clk 0:02:45]}  Nbd7 {[%clk 0:02:12]} 8. b4 {[%clk 0:02:44]}  Re8 {[%clk 0:02:08]} 9. O-O {[%clk 0:02:43]}  Nf8 {[%clk 0:02:08]} 10. b5 {[%clk 0:02:38]}  Ng6 {[%clk 0:02:04]} 11. Bg5 {[%clk 0:02:30]}  h6 {[%clk 0:01:57]} 12. Bxf6 {[%clk 0:02:30]}  Bxf6 {[%clk 0:01:57]} 13. Nd2 {[%clk 0:02:31]}  Bd7 {[%clk 0:01:56]} 14. Rb1 {[%clk 0:02:30]}  Qc8 {[%clk 0:01:54]} 15. Qb3 {[%clk 0:02:17]}  Bh3 {[%clk 0:01:16]} 16. Nde4 {[%clk 0:01:58]}  Be7 {[%clk 0:01:11]} 17. bxc6 {[%clk 0:01:58]}  bxc6 {[%clk 0:01:10]} 18. Qb7 {[%clk 0:01:57]}  Bxg2 {[%clk 0:01:09]} 19. Qxc8 {[%clk 0:01:45]}  Rexc8 {[%clk 0:01:10]} 20. Kxg2 {[%clk 0:01:45]}  Rab8 {[%clk 0:01:10]} 21. e3 {[%clk 0:01:40]}  Nf8 {[%clk 0:01:05]} 22. f4 {[%clk 0:01:38]}  Nd7 {[%clk 0:01:03]} 23. Kf3 {[%clk 0:01:35]}  f5 {[%clk 0:00:58]} 24. Nd2 {[%clk 0:01:26]}  Bf6 {[%clk 0:00:58]} 25. Na4 {[%clk 0:01:16]}  Kf7 {[%clk 0:00:51]} 26. Ke2 {[%clk 0:01:15]}  Ke6 {[%clk 0:00:48]} 27. h3 {[%clk 0:00:49]}  g6 {[%clk 0:00:44]} 28. fxe5 {[%clk 0:00:45]}  Bxe5 {[%clk 0:00:39]} 29. g4 {[%clk 0:00:41]}  Rxb1 {[%clk 0:00:26]} 30. Rxb1 {[%clk 0:00:40]}  Rb8 {[%clk 0:00:26]} 31. gxf5+ {[%clk 0:00:39]}  gxf5 {[%clk 0:00:24]} 32. Rg1 {[%clk 0:00:38]}  Kf7 {[%clk 0:00:21]} 33. d4 {[%clk 0:00:38]}  Bf6 {[%clk 0:00:22]} 34. Kd3 {[%clk 0:00:35]}  Re8 {[%clk 0:00:18]} 35. Rf1 {[%clk 0:00:34]}  Kg6 {[%clk 0:00:16]} 36. Nc3 {[%clk 0:00:34]}  Bg5 {[%clk 0:00:15]} 37. Rf3 {[%clk 0:00:33]}  Nf6 {[%clk 0:00:15]} 38. e4 {[%clk 0:00:22]}  f4 {[%clk 0:00:10]} 39. Rf1 {[%clk 0:00:19]}  Nh5 {[%clk 0:00:10]} 40. Nf3 {[%clk 0:00:19]}  Ng3 {[%clk 0:00:10]} 41. Rb1 {[%clk 0:00:19]}  Re7 {[%clk 0:00:08]} 42. Rb8 {[%clk 0:00:19]}  Nh1 {[%clk 0:00:08]} 43. Nd1 {[%clk 0:00:18]}  Ng3 {[%clk 0:00:08]} 44. Nf2 {[%clk 0:00:18]}  Bf6 {[%clk 0:00:08]} 45. Rd8 {[%clk 0:00:18]}  Rxe4 {[%clk 0:00:09]} 46. Rg8+ {[%clk 0:00:15]}  Kf7 {[%clk 0:00:06]} 47. Nxe4 {[%clk 0:00:16]}  Nxe4 {[%clk 0:00:05]} 48. Ra8 {[%clk 0:00:17]}  Nf2+ {[%clk 0:00:05]} 49. Ke2 {[%clk 0:00:17]}  Nxh3 {[%clk 0:00:06]} 50. Rxa7+ {[%clk 0:00:18]}  Ke6 {[%clk 0:00:07]} 51. a4 {[%clk 0:00:18]}  Ng5 {[%clk 0:00:06]} 52. a5 {[%clk 0:00:19]}  Kf5 {[%clk 0:00:04]} 53. a6 {[%clk 0:00:18]}  Ke4 {[%clk 0:00:05]} 54. Nd2+ {[%clk 0:00:18]}  Kxd4 {[%clk 0:00:00]} 55. Rb7 {[%clk 0:00:19]} 1-0


[Site "https://www.chess.com"]

[Event "Titled Tuesday Blitz July 11 Early 2023"]
[White "Bok, Benjamin"]
[Black "Erigaisi Arjun"]
[WhiteFideId "1017063"]
[BlackFideId "35009192"]
[WhiteElo "2965"]
[BlackElo "3120"]
[Result "1-0"]
[Round "6"]
[TimeControl "180+2"]
[Date "2023.07.11"]
[WhiteClock "0:00:03"]
[BlackClock "0:00:10"]
[Board "2"]

1. d4 {[%clk 0:03:00]}  g6 {[%clk 0:02:58]} 2. c4 {[%clk 0:02:57]}  Bg7 {[%clk 0:02:58]} 3. Nf3 {[%clk 0:02:58]}  b6 {[%clk 0:02:56]} 4. e4 {[%clk 0:02:56]}  Bb7 {[%clk 0:02:55]} 5. Nc3 {[%clk 0:02:56]}  d6 {[%clk 0:02:55]} 6. Be2 {[%clk 0:02:56]}  e6 {[%clk 0:02:54]} 7. O-O {[%clk 0:02:56]}  Ne7 {[%clk 0:02:54]} 8. Be3 {[%clk 0:02:56]}  h6 {[%clk 0:02:54]} 9. Qc2 {[%clk 0:02:56]}  Nd7 {[%clk 0:02:53]} 10. Rfd1 {[%clk 0:02:52]}  g5 {[%clk 0:02:52]} 11. Rac1 {[%clk 0:02:43]}  g4 {[%clk 0:02:41]} 12. Nd2 {[%clk 0:02:35]}  Nc6 {[%clk 0:02:39]} 13. Nf1 {[%clk 0:02:13]}  Qh4 {[%clk 0:02:17]} 14. Nb5 {[%clk 0:02:02]}  Rc8 {[%clk 0:02:02]} 15. d5 {[%clk 0:01:57]}  Nce5 {[%clk 0:01:55]} 16. Nxa7 {[%clk 0:01:55]}  Ra8 {[%clk 0:01:55]} 17. Nb5 {[%clk 0:01:56]}  Rxa2 {[%clk 0:01:50]} 18. Bd4 {[%clk 0:00:48]}  Ke7 {[%clk 0:01:40]} 19. Nxc7 {[%clk 0:00:38]}  Rg8 {[%clk 0:01:29]} 20. Qb3 {[%clk 0:00:36]}  Ra5 {[%clk 0:01:18]} 21. dxe6 {[%clk 0:00:33]}  fxe6 {[%clk 0:01:18]} 22. c5 {[%clk 0:00:32]}  d5 {[%clk 0:00:58]} 23. exd5 {[%clk 0:00:33]}  Nf3+ {[%clk 0:00:53]} 24. Bxf3 {[%clk 0:00:28]}  gxf3 {[%clk 0:00:51]} 25. d6+ {[%clk 0:00:25]}  Kd8 {[%clk 0:00:47]} 26. Nxe6+ {[%clk 0:00:23]}  Kc8 {[%clk 0:00:46]} 27. cxb6+ {[%clk 0:00:09]}  Kb8 {[%clk 0:00:46]} 28. Nxg7 {[%clk 0:00:09]}  Rf8 {[%clk 0:00:41]} 29. Qc3 {[%clk 0:00:09]}  Qg5 {[%clk 0:00:24]} 30. Ng3 {[%clk 0:00:08]}  fxg2 {[%clk 0:00:23]} 31. Qc7+ {[%clk 0:00:04]}  Ka8 {[%clk 0:00:23]} 32. Ra1 {[%clk 0:00:05]}  Nb8 {[%clk 0:00:15]} 33. b4 {[%clk 0:00:04]}  Ra6 {[%clk 0:00:14]} 34. b5 {[%clk 0:00:03]}  Qxb5 {[%clk 0:00:14]} 35. Ne6 {[%clk 0:00:03]}  Re8 {[%clk 0:00:13]} 36. d7 {[%clk 0:00:02]}  Rxe6 {[%clk 0:00:09]} 37. Qxb8+ {[%clk 0:00:01]}  Kxb8 {[%clk 0:00:09]} 38. d8=Q+ {[%clk 0:00:02]}  Bc8 {[%clk 0:00:10]} 39. Qc7+ {[%clk 0:00:02]}  Ka8 {[%clk 0:00:10]} 40. Qxc8# {[%clk 0:00:03]} 1-0


[Site "https://www.chess.com"]